bitfinex/quotes_BTCUSD_20241021
["timestamp","ask_amount","ask_price","bid_price","bid_amount"]
[1729528780428,0.00169,67107.0,67106.0,1.13797615]
[1729528780643,0.00169,67107.0,67106.0,1.49837803]
[1729528780853,0.00169,67107.0,67106.0,1.3009353]
[1729528781062,0.00169,67107.0,67106.0,1.2799353]
[1729528781271,0.00169,67107.0,67106.0,1.3129353]
[1729528781480,0.00169,67107.0,67106.0,1.44662907]
[1729528781695,0.00169,67107.0,67106.0,1.2989353]
[1729528781902,0.00169,67107.0,67106.0,1.3129353]
[1729528782113,0.00169,67107.0,67106.0,1.3149353]
[1729528782328,0.00169,67107.0,67106.0,1.3009353]
[1729528782761,0.00169,67107.0,67106.0,1.3149353]
[1729528783210,0.00169,67107.0,67106.0,1.2849353]
[1729528783411,0.00169,67107.0,67106.0,1.41858527]
[1729528783627,0.00169,67107.0,67106.0,1.4465782]
[1729528783847,0.00169,67107.0,67106.0,1.4325782]
[1729528784053,0.00169,67107.0,67106.0,1.4345782]
[1729528784285,0.00169,67107.0,67106.0,1.43258359]
[1729528784503,0.00169,67107.0,67106.0,1.3129353]
[1729528785180,0.00169,67107.0,67106.0,1.16397615]
[1729528785653,0.00169,67107.0,67106.0,1.14997615]
[1729528786084,0.00169,67107.0,67106.0,1.16397615]
[1729528786519,0.00169,67107.0,67106.0,1.16597615]
[1729528788482,0.00169,67107.0,67106.0,1.16397615]
[1729528788700,0.00169,67107.0,67106.0,1.3129353]
[1729528789394,0.00169,67107.0,67106.0,1.3149353]
[1729528789626,0.00169,67107.0,67106.0,1.3129353]
[1729528790052,0.00169,67107.0,67106.0,1.3149353]
[1729528791365,0.22256018,67120.0,67114.0,0.015]
[1729528791587,0.22256018,67120.0,67118.0,0.023]
[1729528791803,0.00169,67127.0,67119.0,0.29794715]
[1729528792027,0.00169,67127.0,67119.0,0.14895915]
[1729528793600,0.00169,67127.0,67120.0,0.148985]
[1729528793821,0.00169,67127.0,67121.0,0.14895915]
[1729528794295,0.00169,67127.0,67121.0,0.84895915]
[1729528794504,0.00169,67127.0,67121.0,0.9979183]
[1729528795829,0.148981,67123.0,67121.0,0.7]
[1729528796062,0.0764,67125.0,67121.0,0.702]
[1729528796731,0.0764,67125.0,67121.0,0.85095915]
[1729528797185,0.0764,67125.0,67122.0,0.14895915]
[1729528798053,0.00169,67127.0,67122.0,0.84895915]
[1729528798277,0.00169,67127.0,67123.0,0.09979502]
[1729528798516,0.00169,67127.0,67124.0,0.14895915]
[1729528799417,0.00169,67127.0,67124.0,0.84895915]
[1729528799878,0.00169,67127.0,67124.0,0.85095915]
[1729528800097,0.00169,67127.0,67124.0,0.702]
[1729528801204,0.00169,67127.0,67124.0,0.7]
[1729528801429,0.00169,67127.0,67125.0,0.37151933]
[1729528801657,0.00269,67127.0,67125.0,0.14895915]
[1729528802120,0.00169,67127.0,67125.0,0.14895915]
[1729528802369,0.00269,67127.0,67117.0,0.22256018]
[1729528802582,0.00269,67127.0,67118.0,0.14895915]
[1729528802583,0.148974,67126.0,67118.0,0.14895915]
[1729528802809,0.00169,67127.0,67118.0,0.14895915]
[1729528803054,0.148973,67126.0,67118.0,0.14895915]
[1729528803275,0.297947,67126.0,67118.0,0.14895915]
[1729528803513,0.297947,67126.0,67109.0,0.31158001]
[1729528803514,0.2157189,67125.0,67109.0,0.22256018]
[1729528803730,0.0465189,67124.0,67116.0,0.22256018]
[1729528803968,0.1954969,67124.0,67116.0,0.22256018]
[1729528804198,0.1692,67125.0,67116.0,0.22256018]
[1729528804199,0.0465189,67123.0,67116.0,0.22256018]
[1729528804446,0.0465189,67124.0,67116.0,0.22256018]
[1729528804683,0.04652314,67123.0,67116.0,0.22256018]
[1729528804983,0.04652314,67124.0,67117.0,0.7]
[1729528805194,0.04652383,67123.0,67118.0,0.06411569]
[1729528805451,0.1692,67125.0,67118.0,0.06411569]
[1729528805693,0.1692,67125.0,67118.0,0.37151933]
[1729528805924,0.00169,67127.0,67118.0,0.37151933]
[1729528805925,0.00169,67127.0,67120.0,0.023]
[1729528806143,0.00169,67127.0,67126.0,0.148973]
[1729528806386,0.00169,67127.0,67126.0,0.14895915]
[1729528806599,0.00169,67127.0,67126.0,0.22374382]
[1729528806843,0.00169,67127.0,67126.0,0.92374382]
[1729528807025,0.00169,67127.0,67126.0,0.84895915]
[1729528807861,0.00169,67127.0,67126.0,0.99793215]
[1729528808085,0.00169,67127.0,67126.0,0.85595915]
[1729528808331,0.00169,67127.0,67126.0,0.86395915]
[1729528808493,0.00169,67127.0,67126.0,0.84895915]
[1729528808872,0.00169,67127.0,67126.0,0.86295915]
[1729528809292,0.00169,67127.0,67126.0,1.00493215]
[1729528809506,0.00169,67127.0,67126.0,0.85595915]
[1729528809716,0.00169,67127.0,67126.0,0.86395915]
[1729528810144,0.00169,67127.0,67126.0,0.85695915]
[1729528810360,0.00169,67127.0,67126.0,0.86495915]
[1729528810576,0.00169,67127.0,67126.0,0.85695915]
[1729528811239,0.00169,67127.0,67126.0,0.16495915]
[1729528811456,0.00169,67127.0,67126.0,0.18195507]
[1729528811684,0.09729,67127.0,67126.0,0.016]
[1729528811906,0.15057497,67127.0,67126.0,0.016]
[1729528812124,0.29954597,67127.0,67126.0,0.016]
[1729528812576,0.15057497,67127.0,67126.0,0.008]
[1729528812801,0.05497497,67127.0,67126.0,0.008]
[1729528813017,0.00843804,67127.0,67126.0,0.008]
[1729528813236,0.00843804,67127.0,67119.0,0.22256018]
[1729528813466,0.00169,67127.0,67121.0,0.148984]
[1729528813708,0.00269,67127.0,67122.0,0.14895915]
[1729528814385,0.00369,67127.0,67122.0,0.14895915]
[1729528814630,0.00169,67127.0,67123.0,0.7]
[1729528814845,0.00369,67127.0,67123.0,0.84895915]
[1729528815091,0.00369,67127.0,67124.0,0.14895915]
[1729528815296,0.00169,67127.0,67124.0,0.14895915]
[1729528815508,0.00169,67127.0,67125.0,0.7]
[1729528815703,0.00369,67127.0,67126.0,0.14895915]
[1729528816359,0.0104141,67127.0,67126.0,0.14895915]
[1729528816590,0.00369,67127.0,67126.0,0.14895915]
[1729528816802,0.0104141,67127.0,67126.0,0.14895915]
[1729528817020,0.00169,67127.0,67126.0,0.14895915]
[1729528817229,0.0104141,67127.0,67126.0,0.14895915]
[1729528817451,0.010413,67127.0,67126.0,0.14895915]
[1729528817697,0.00269,67127.0,67126.0,0.14895915]
[1729528817901,0.009413,67127.0,67126.0,0.14895915]
[1729528818381,0.008413,67127.0,67126.0,0.14895915]
[1729528819080,0.00169,67127.0,67126.0,0.14895915]
[1729528819322,0.00841622,67127.0,67126.0,0.16385507]
[1729528819556,0.00169,67127.0,67126.0,0.16385507]
[1729528819992,0.00841622,67127.0,67126.0,0.16385507]
[1729528820236,0.00169,67127.0,67126.0,0.14895915]
[1729528820456,0.00169,67127.0,67126.0,0.84895915]
[1729528822002,0.04824899,67127.0,67126.0,0.14895915]
[1729528822254,0.05495457,67127.0,67126.0,0.14895915]
[1729528824077,0.00839558,67127.0,67126.0,0.14895915]
[1729528824294,0.05495511,67127.0,67126.0,0.14895915]
[1729528824758,0.00839558,67127.0,67126.0,0.14895915]
[1729528824967,0.00839558,67127.0,67126.0,0.84895915]
[1729528825182,0.00169,67127.0,67126.0,0.84895915]
[1729528825450,0.00169,67127.0,67126.0,0.84995915]
[1729528825690,0.05495608,67127.0,67126.0,0.84995915]
[1729528825900,0.04824998,67127.0,67126.0,0.84995915]
[1729528826581,0.05495608,67127.0,67126.0,0.84995915]
[1729528826810,0.05495608,67127.0,67126.0,0.85095915]
[1729528827019,0.04824998,67127.0,67126.0,0.85095915]
[1729528827230,0.05495417,67127.0,67126.0,0.85095915]
[1729528827664,0.04824998,67127.0,67126.0,0.85095915]
[1729528827894,0.00169,67127.0,67126.0,0.93605507]
[1729528828578,0.00169,67127.0,67126.0,1.02536876]
[1729528828784,0.00169,67127.0,67126.0,0.93605507]
[1729528829011,0.00169,67127.0,67126.0,0.94027284]
[1729528829232,0.00169,67127.0,67126.0,0.85095915]
[1729528830129,0.00169,67127.0,67126.0,0.94027284]
[1729528830623,0.00169,67127.0,67126.0,0.85095915]
[1729528833247,0.00169,67127.0,67126.0,0.702]
[1729528833483,0.150661,67127.0,67126.0,0.002]
[1729528833731,0.06263781,67127.0,67126.0,0.002]
[1729528833942,0.06263781,67127.0,67126.0,0.001]
[1729528833943,0.21160881,67127.0,67126.0,0.001]
[1729528834160,0.06263781,67127.0,67122.0,0.7]
[1729528834391,0.43068,67123.0,67122.0,0.7]
[1729528834606,0.47723973,67123.0,67122.0,0.7]
[1729528834839,0.148984,67121.0,67112.0,0.22256018]
[1729528835065,0.29554573,67120.0,67119.0,0.22256018]
[1729528835283,0.04655973,67120.0,67112.0,0.22256018]
[1729528835502,0.06094423,67119.0,67112.0,0.2448987]
[1729528835743,0.04655973,67118.0,67112.0,0.2448987]
[1729528836172,0.06094423,67117.0,67113.0,0.14895915]
[1729528836388,0.04655973,67116.0,67113.0,0.14895915]
[1729528836600,0.01428339,67116.0,67113.0,0.14895915]
[1729528836828,0.01428339,67116.0,67114.0,0.01489592]
[1729528837083,0.01428339,67116.0,67113.0,0.14895915]
[1729528837084,0.00169,67127.0,67115.0,0.14895915]
[1729528837295,0.34447637,67126.0,67115.0,0.14895915]
[1729528837522,0.001,67120.0,67119.0,0.001]
[1729528837727,0.001,67120.0,67115.0,0.14895915]
[1729528837728,0.148975,67126.0,67116.0,0.22256018]
[1729528837950,0.20979824,67125.0,67117.0,0.14895915]
[1729528838164,0.01429343,67125.0,67117.0,0.14895915]
[1729528838445,0.046529,67124.0,67117.0,0.14895915]
[1729528838664,0.001,67120.0,67117.0,0.14895915]
[1729528838876,0.01429343,67124.0,67117.0,0.14895915]
[1729528839087,0.148976,67125.0,67117.0,0.14895915]
[1729528839512,0.06082379,67124.0,67117.0,0.14895915]
[1729528839731,0.01429343,67124.0,67113.0,0.08933627]
[1729528839950,0.297964,67122.0,67115.0,0.7]
[1729528840170,0.20985837,67121.0,67116.0,0.22256018]
[1729528840374,0.01434189,67121.0,67116.0,0.22256018]
[1729528840588,0.16332689,67121.0,67116.0,0.22256018]
[1729528840800,0.001,67124.0,67115.0,0.7]
[1729528841041,0.148991,67119.0,67115.0,0.7]
[1729528841488,0.01433128,67118.0,67117.0,0.003]
[1729528842352,0.01433128,67118.0,67110.0,0.08933627]
[1729528842353,0.148987,67120.0,67110.0,0.08933627]
[1729528842567,0.01433128,67119.0,67111.0,0.14895915]
[1729528842804,0.01433128,67119.0,67115.0,0.001]
[1729528843003,0.01433128,67119.0,67111.0,0.14895915]
[1729528844100,0.001,67121.0,67111.0,0.14895915]
[1729528844316,0.04653103,67120.0,67111.0,0.14895915]
[1729528844548,0.04653103,67120.0,67107.0,0.000825]
[1729528844549,0.1767,67119.0,67107.0,0.000825]
[1729528844808,0.04753103,67118.0,67109.0,0.92256018]
[1729528845075,0.149,67114.0,67109.0,0.92256018]
[1729528845298,0.04653103,67113.0,67109.0,0.7]
[1729528845522,0.04653103,67112.0,67109.0,0.7]
[1729528845742,0.1767,67119.0,67109.0,0.7]
[1729528845743,0.297987,67117.0,67109.0,0.7]
[1729528845964,0.20975052,67116.0,67109.0,0.7]
[1729528846212,0.04651829,67115.0,67110.0,0.29272518]
[1729528846468,0.04651829,67115.0,67107.0,0.000825]
[1729528846469,0.1,67122.0,67107.0,0.000825]
[1729528846681,0.01423523,67114.0,67109.0,0.148989]
[1729528846912,0.005,67121.0,67109.0,0.52052933]
[1729528847147,0.0607014,67120.0,67109.0,0.37151933]
[1729528847382,0.04651749,67119.0,67110.0,0.22885915]
[1729528847621,0.00169,67127.0,67111.0,0.023]
[1729528847858,0.00169,67127.0,67114.0,0.298]
[1729528848087,0.04650957,67126.0,67115.0,0.14895915]
[1729528848315,0.06069384,67126.0,67115.0,0.14895915]
[1729528848527,0.001,67120.0,67115.0,0.99795615]
[1729528848986,0.150661,67127.0,67115.0,0.99795615]
[1729528849203,0.04651061,67126.0,67117.0,0.148993]
[1729528849426,0.06069488,67126.0,67117.0,0.14895915]
[1729528849662,0.01418427,67126.0,67119.0,0.148988]
[1729528849884,0.01418427,67126.0,67120.0,0.14895915]
[1729528850104,0.00269,67127.0,67120.0,0.14895915]
[1729528850320,0.00269,67127.0,67120.0,0.29794415]
[1729528850321,0.00169,67127.0,67120.0,0.29794415]
[1729528850542,0.00169,67127.0,67120.0,0.84895915]
[1729528850763,0.01618427,67126.0,67120.0,0.84895915]
[1729528852251,0.01618427,67126.0,67120.0,0.14895915]
[1729528852763,0.01418427,67126.0,67120.0,0.14895915]
[1729528853005,0.01518427,67126.0,67120.0,0.29794515]
[1729528853232,0.001,67126.0,67120.0,0.14895915]
[1729528853675,0.01418427,67125.0,67120.0,0.84895915]
[1729528853889,0.001,67126.0,67120.0,0.84895915]
[1729528854336,0.01418427,67125.0,67120.0,0.84895915]
[1729528855617,0.00169,67127.0,67120.0,0.84895915]
[1729528855834,0.01418427,67124.0,67120.0,0.84895915]
[1729528856048,0.00169,67127.0,67120.0,0.84895915]
[1729528856313,0.01418427,67123.0,67120.0,0.7]
[1729528856529,0.01418427,67122.0,67120.0,0.7]
[1729528856752,0.00369,67127.0,67120.0,0.7]
[1729528856973,0.148976,67125.0,67120.0,0.7]
[1729528857188,0.077,67125.0,67112.0,0.08933627]
[1729528857428,0.077,67125.0,67117.0,0.22256018]
[1729528857429,0.148981,67123.0,67117.0,0.22256018]
[1729528857639,0.0465112,67122.0,67113.0,0.14895915]
[1729528857852,0.1632411,67122.0,67113.0,0.14895915]
[1729528858075,0.0142591,67122.0,67113.0,0.14895915]
[1729528858318,0.148983,67122.0,67113.0,0.14895915]
[1729528858533,0.06076641,67121.0,67120.0,0.002]
[1729528858740,0.0142591,67121.0,67113.0,0.15195915]
[1729528858950,0.14898,67123.0,67113.0,0.15495915]
[1729528859155,0.0142591,67122.0,67113.0,0.15495915]
[1729528859372,0.0142591,67122.0,67113.0,0.14895915]
[1729528859607,0.0142591,67122.0,67120.0,0.004]
[1729528860082,0.148978,67124.0,67113.0,0.14895915]
[1729528860300,0.374952,67125.0,67114.0,0.7]
[1729528860301,0.01424578,67121.0,67114.0,0.7]
[1729528860503,0.077,67125.0,67115.0,0.14895915]
[1729528860758,0.04649588,67124.0,67120.0,0.004]
[1729528860952,0.06074166,67124.0,67120.0,0.004]
[1729528861153,0.16322378,67124.0,67120.0,0.004]
[1729528861459,0.0464903,67123.0,67116.0,0.22256018]
[1729528861662,0.0464903,67123.0,67116.0,1.07151933]
[1729528862048,0.01424578,67122.0,67116.0,0.84895915]
[1729528862291,0.01424578,67122.0,67116.0,0.14895915]
[1729528862505,0.148978,67124.0,67120.0,0.003]
[1729528862726,0.01424841,67121.0,67120.0,0.003]
[1729528862981,0.148978,67124.0,67116.0,0.14895915]
[1729528863432,0.374951,67125.0,67109.0,0.22256018]
[1729528863433,0.297964,67122.0,67109.0,0.22256018]
[1729528863675,0.148988,67120.0,67110.0,0.14895915]
[1729528864160,0.001,67124.0,67110.0,0.14895915]
[1729528864376,0.01424468,67119.0,67115.0,1.0]
[1729528864796,0.225976,67125.0,67115.0,1.0]
[1729528864985,0.04647616,67124.0,67115.0,1.0]
[1729528865238,0.06072084,67124.0,67115.0,1.0]
[1729528865426,0.19545716,67123.0,67115.0,1.0]
[1729528865704,0.001,67124.0,67121.0,0.148984]
[1729528865911,0.1,67135.0,67122.0,0.14895915]
[1729528866140,0.001,67124.0,67122.0,0.14895915]
[1729528866364,0.001,67124.0,67123.0,0.17198]
[1729528866587,0.00169,67137.0,67123.0,0.17198]
[1729528866588,0.00169,67137.0,67126.0,0.148973]
[1729528866806,0.00169,67137.0,67126.0,0.38722995]
[1729528867481,0.00169,67137.0,67126.0,0.29793215]
[1729528867762,0.00169,67137.0,67126.0,0.99793215]
[1729528867982,0.00169,67137.0,67126.0,0.84895915]
[1729528868444,0.00169,67137.0,67126.0,1.00993215]
[1729528868653,0.00169,67137.0,67126.0,0.86095915]
[1729528868900,0.00169,67137.0,67126.0,0.712]
[1729528869106,0.0765,67132.0,67126.0,0.7]
[1729528869302,0.148959,67133.0,67126.0,0.7]
[1729528869562,0.148959,67133.0,67126.0,0.709]
[1729528870025,0.07989,67137.0,67126.0,0.99793215]
[1729528870309,0.00169,67137.0,67126.0,1.00293215]
[1729528870536,0.00169,67137.0,67126.0,1.00593215]
[1729528870765,0.00169,67137.0,67126.0,0.85695915]
[1729528870971,0.00169,67137.0,67126.0,0.85295915]
[1729528871191,0.00169,67137.0,67126.0,0.86195915]
[1729528871601,0.148955,67135.0,67126.0,0.704]
[1729528872115,0.148956,67134.0,67126.0,0.708]
[1729528872574,0.148954,67135.0,67126.0,0.716]
[1729528872830,0.148954,67135.0,67126.0,0.708]
[1729528873049,0.297912,67134.0,67126.0,0.713]
[1729528873271,0.0756,67134.0,67126.0,0.713]
[1729528873948,0.148956,67134.0,67126.0,0.708]
[1729528874135,0.148954,67135.0,67126.0,0.7]
[1729528874430,0.297903,67136.0,67126.0,0.7]
[1729528874670,0.00169,67137.0,67126.0,0.705]
[1729528874900,0.297902,67136.0,67126.0,0.705]
[1729528875143,0.00169,67137.0,67126.0,0.7]
[1729528875412,0.148952,67136.0,67126.0,0.705]
[1729528875659,0.150639,67137.0,67126.0,0.704]
[1729528875866,0.150639,67137.0,67126.0,0.7]
[1729528876289,0.00169,67137.0,67126.0,0.703]
[1729528876515,0.15064,67137.0,67126.0,0.706]
[1729528877197,0.148952,67136.0,67126.0,0.85495915]
[1729528877408,0.00169,67137.0,67126.0,1.00393215]
[1729528878056,0.150639,67137.0,67126.0,0.85495915]
[1729528878295,0.00169,67137.0,67126.0,1.00393215]
[1729528878512,0.00169,67137.0,67126.0,1.00093215]
[1729528878721,0.00169,67137.0,67126.0,0.99793215]
[1729528879197,0.00169,67137.0,67126.0,1.01393215]
[1729528879409,0.00169,67137.0,67126.0,0.85695915]
[1729528879652,0.00169,67137.0,67126.0,1.01393215]
[1729528880742,0.00169,67137.0,67126.0,1.00593215]
[1729528880955,0.00169,67137.0,67126.0,1.01393215]
[1729528881172,0.00169,67137.0,67126.0,1.25949233]
[1729528881387,0.00169,67137.0,67126.0,1.13593215]
[1729528881899,0.00169,67137.0,67126.0,0.43593215]
[1729528884300,0.00169,67137.0,67126.0,0.44093215]
[1729528884531,0.00169,67137.0,67126.0,0.44293215]
[1729528884763,0.00169,67137.0,67126.0,1.14293215]
[1729528885413,0.00169,67137.0,67126.0,1.12493215]
[1729528885631,0.00169,67137.0,67126.0,1.13893215]
[1729528885841,0.00169,67137.0,67126.0,1.49829876]
[1729528886072,0.00169,67137.0,67132.0,0.005]
[1729528886285,0.00169,67137.0,67136.0,0.171951]
[1729528886501,0.00169,67137.0,67136.0,0.4698693]
[1729528887426,0.00169,67137.0,67136.0,1.1698693]
[1729528888275,0.00169,67137.0,67136.0,1.1768693]
[1729528889005,0.00169,67137.0,67136.0,1.3504693]
[1729528889365,0.00169,67137.0,67136.0,1.3584693]
[1729528892204,0.00169,67137.0,67136.0,1.3504693]
[1729528892643,0.00169,67137.0,67136.0,1.3614693]
[1729528892866,0.00169,67137.0,67136.0,1.3544693]
[1729528893069,0.00169,67137.0,67136.0,1.21551015]
[1729528894171,0.00169,67137.0,67136.0,1.20451015]
[1729528894385,0.00169,67137.0,67136.0,1.21251015]
[1729528894816,0.00169,67137.0,67136.0,1.19451015]
[1729528895053,0.00169,67137.0,67136.0,1.3434693]
[1729528895285,0.00169,67137.0,67136.0,1.3574693]
[1729528895763,0.00169,67137.0,67136.0,1.3534693]
[1729528895999,0.00169,67137.0,67136.0,1.3564693]
[1729528896266,0.00169,67137.0,67136.0,1.3614693]
[1729528896469,0.00169,67137.0,67136.0,1.3754693]
[1729528896672,0.00169,67137.0,67136.0,1.3614693]
[1729528897104,0.00169,67137.0,67136.0,1.45053229]
[1729528897550,0.00169,67137.0,67136.0,1.43753229]
[1729528898010,0.00169,67137.0,67136.0,1.3764693]
[1729528898459,0.00169,67137.0,67136.0,1.3624693]
[1729528898679,0.00169,67137.0,67136.0,1.11051015]
[1729528898920,0.00169,67137.0,67136.0,0.88595915]
[1729528899176,0.00169,67137.0,67136.0,1.03491015]
[1729528899380,0.00169,67137.0,67136.0,0.87195915]
[1729528899601,0.00169,67137.0,67136.0,1.03491015]
[1729528899822,0.00169,67137.0,67136.0,1.04891015]
[1729528900251,0.00169,67137.0,67136.0,1.1978693]
[1729528900881,0.00169,67137.0,67136.0,1.1838693]
[1729528901086,0.00169,67137.0,67136.0,1.1698693]
[1729528901298,0.00169,67137.0,67136.0,1.1758693]
[1729528901523,0.00169,67137.0,67136.0,1.1868693]
[1729528901764,0.00169,67137.0,67136.0,1.1808693]
[1729528902226,0.00169,67137.0,67136.0,1.2817693]
[1729528902448,0.00169,67137.0,67136.0,1.3472693]
[1729528902681,0.00169,67137.0,67136.0,1.3592693]
[1729528904239,0.00169,67137.0,67136.0,1.3532693]
[1729528904425,0.00169,67137.0,67136.0,1.3642693]
[1729528904640,0.00169,67137.0,67136.0,1.3772693]
[1729528905766,0.00169,67137.0,67136.0,1.38488949]
[1729528906008,0.001688,67148.0,67147.0,0.249326]
[1729528906250,0.001688,67148.0,67147.0,1.09828515]
[1729528906486,0.001688,67159.0,67158.0,0.148902]
[1729528906722,0.001688,67164.0,67159.0,0.005]
[1729528906942,0.001688,67164.0,67162.0,0.171893]
[1729528907163,0.01467879,67162.0,67159.0,0.2978]
[1729528907381,0.001688,67164.0,67155.0,0.023]
[1729528907852,0.001688,67164.0,67156.0,0.14895915]
[1729528907853,0.15058,67163.0,67156.0,0.14895915]
[1729528908043,0.01467879,67162.0,67156.0,0.16385507]
[1729528909186,0.01467879,67162.0,67156.0,0.16885507]
[1729528909412,0.01467879,67162.0,67158.0,0.1489]
[1729528909627,0.01467879,67162.0,67159.0,0.29785915]
[1729528910057,0.01467879,67162.0,67159.0,0.14895915]
[1729528910272,0.001688,67163.0,67159.0,0.14895915]
[1729528910540,0.001688,67163.0,67160.0,0.04666731]
[1729528910798,0.01467879,67162.0,67161.0,0.29785415]
[1729528911021,0.001688,67163.0,67161.0,0.14895915]
[1729528911689,0.01467879,67162.0,67161.0,0.14895915]
[1729528912116,0.01467879,67162.0,67161.0,0.30185415]
[1729528912554,0.001688,67163.0,67162.0,0.148893]
[1729528912774,0.001688,67163.0,67161.0,0.15795915]
[1729528912994,0.001688,67163.0,67161.0,0.38370016]
[1729528913225,0.01478798,67162.0,67161.0,0.23480516]
[1729528913674,0.01478798,67162.0,67161.0,0.40669916]
[1729528914120,0.001688,67163.0,67162.0,0.148893]
[1729528914364,0.001688,67163.0,67162.0,0.30285215]
[1729528914625,0.001688,67163.0,67162.0,0.44051147]
[1729528914842,0.001688,67163.0,67162.0,0.43551147]
[1729528915487,0.001688,67163.0,67162.0,0.43951147]
[1729528915972,0.001688,67163.0,67162.0,0.30685215]
[1729528917069,0.001688,67163.0,67162.0,0.009]
[1729528918223,0.001688,67163.0,67162.0,0.15795915]
[1729528918463,0.001688,67163.0,67162.0,0.30685215]
[1729528919354,0.001688,67163.0,67162.0,0.15795915]
[1729528919577,0.001688,67163.0,67162.0,0.30685215]
[1729528922457,0.001688,67163.0,67162.0,0.39709627]
[1729528922717,0.001688,67163.0,67162.0,0.24820327]
[1729528923450,0.001688,67163.0,67162.0,0.15795915]
[1729528924753,0.001688,67163.0,67162.0,0.14895915]
[1729528925204,0.001688,67163.0,67162.0,0.15795915]
[1729528925419,0.001688,67163.0,67162.0,0.15395915]
[1729528925862,0.001688,67163.0,67162.0,0.15795915]
[1729528926255,0.001688,67163.0,67162.0,0.30685215]
[1729528926506,0.001688,67163.0,67162.0,0.37146516]
[1729528926934,0.001688,67163.0,67162.0,0.36246516]
[1729528927362,0.001688,67163.0,67162.0,0.37346516]
[1729528927575,0.001688,67163.0,67162.0,0.15495915]
[1729528927787,0.001688,67163.0,67162.0,0.29785215]
[1729528928002,0.001688,67163.0,67162.0,0.31285215]
[1729528928213,0.001688,67163.0,67162.0,0.30585215]
[1729528928470,0.001688,67163.0,67162.0,0.31285215]
[1729528928685,0.001688,67163.0,67162.0,0.30485215]
[1729528928871,0.001688,67163.0,67162.0,0.30985215]
[1729528929997,0.001688,67163.0,67162.0,0.30285215]
[1729528930210,0.001688,67163.0,67162.0,0.29785215]
[1729528930431,0.001688,67163.0,67162.0,0.30585215]
[1729528930685,0.321779,67163.0,67162.0,0.009]
[1729528930889,0.37312791,67163.0,67162.0,0.009]
[1729528931116,0.37312791,67163.0,67162.0,0.018]
[1729528931117,0.39305856,67163.0,67162.0,0.018]
[1729528931346,0.39305856,67163.0,67160.0,1.0]
[1729528931347,0.09161865,67163.0,67160.0,1.0]
[1729528931555,0.01661865,67163.0,67162.0,0.012]
[1729528931771,0.001688,67163.0,67162.0,0.012]
[1729528931988,0.01661865,67163.0,67160.0,1.0]
[1729528932196,0.01661865,67163.0,67161.0,0.14895915]
[1729528932408,0.001688,67163.0,67161.0,0.14895915]
[1729528932831,0.001688,67163.0,67162.0,0.148893]
[1729528933041,0.001688,67163.0,67162.0,0.29785215]
[1729528934354,0.001688,67163.0,67162.0,0.15095915]
[1729528934560,0.001688,67163.0,67162.0,0.31885215]
[1729528934765,0.001688,67163.0,67162.0,0.30985215]
[1729528934983,0.001688,67163.0,67162.0,0.31885215]
[1729528935191,0.001688,67163.0,67162.0,0.30685215]
[1729528935392,0.001688,67163.0,67162.0,0.31685215]
[1729528935604,0.001688,67163.0,67162.0,0.16795915]
[1729528936220,0.001688,67163.0,67162.0,0.31685215]
[1729528938360,0.001688,67163.0,67162.0,0.16795915]
[1729528939278,0.001688,67163.0,67162.0,0.31685215]
[1729528939891,0.001688,67163.0,67162.0,0.16795915]
[1729528940126,0.001688,67163.0,67162.0,0.31685215]
[1729528940535,0.001688,67163.0,67162.0,0.16795915]
[1729528940740,0.001688,67163.0,67162.0,0.31685215]
[1729528941429,0.001688,67163.0,67162.0,0.16795915]
[1729528941796,0.001688,67163.0,67162.0,0.31685215]
[1729528942766,0.001688,67163.0,67162.0,0.4658113]
[1729528943040,0.001688,67163.0,67162.0,0.16795915]
[1729528943578,0.001688,67163.0,67162.0,0.31685215]
[1729528943979,0.001688,67163.0,67162.0,0.16795915]
[1729528944190,0.001688,67163.0,67162.0,0.31685215]
[1729528945269,0.001688,67163.0,67162.0,0.16795915]
[1729528945449,0.001688,67163.0,67162.0,0.31685215]
[1729528946465,0.001688,67163.0,67162.0,0.16795915]
[1729528946693,0.001688,67163.0,67162.0,0.31685215]
[1729528947179,0.001688,67163.0,67162.0,0.16795915]
[1729528947405,0.001688,67163.0,67162.0,0.31685215]
[1729528947841,0.001688,67163.0,67162.0,0.16795915]
[1729528948748,0.01666186,67163.0,67162.0,0.16795915]
[1729528949913,0.01666186,67163.0,67162.0,0.019]
[1729528949914,0.06312355,67163.0,67162.0,0.019]
[1729528950157,0.21201455,67163.0,67162.0,0.019]
[1729528950790,0.06312355,67163.0,67160.0,1.0]
[1729528951009,0.04646169,67162.0,67160.0,1.0]
[1729528951267,0.148895,67161.0,67160.0,1.0]
[1729528951489,0.06143555,67161.0,67160.0,1.0]
[1729528951712,0.21033055,67161.0,67160.0,1.0]
[1729528954890,0.38413055,67161.0,67160.0,1.0]
[1729528955345,0.14343555,67161.0,67160.0,1.0]
[1729528955569,0.29233055,67161.0,67160.0,1.0]
[1729528956013,0.14343555,67161.0,67160.0,1.0]
[1729528956227,0.29233055,67161.0,67160.0,1.0]
[1729528957544,0.14343555,67161.0,67160.0,1.0]
[1729528957756,0.01497386,67161.0,67160.0,1.0]
[1729528958786,0.00165,67161.0,67160.0,1.0]
[1729528959017,0.150545,67161.0,67160.0,1.0]
[1729528959214,0.37071681,67161.0,67160.0,1.0]
[1729528959441,0.3855731,67161.0,67160.0,1.0]
[1729528960128,0.2366781,67161.0,67160.0,1.001]
[1729528960366,0.2937731,67161.0,67160.0,1.0]
[1729528961038,0.1448781,67161.0,67160.0,1.0]
[1729528961236,0.2937731,67161.0,67160.0,1.0]
[1729528961864,0.0628781,67161.0,67160.0,1.0]
[1729528962069,0.01650629,67161.0,67160.0,1.0]
[1729528967747,0.01650629,67161.0,67160.0,1.001]
[1729528969083,0.01650629,67161.0,67160.0,1.77545355]
[1729528969291,0.00165,67161.0,67160.0,1.701]
[1729528970374,0.00165,67161.0,67160.0,1.001]
[1729528970586,0.0165136,67161.0,67160.0,1.001]
[1729528971631,0.0165136,67161.0,67160.0,1.0]
[1729528975688,0.1654086,67161.0,67160.0,1.0]